fUSD/lending_fUSD_20240811
["ID","MTS","AMOUNT","RATE_DAILY","PERIOD"]
[334626261,1723362637847,-5726.34454775,0.00016875,2]
[334626262,1723362637862,-2879.43368562,0.00016875,2]
[334626263,1723362637965,-1142.92941256,0.00016875,2]
[334626264,1723362637976,-1856.5631075,0.00016875,2]
[334626265,1723362638019,-729.17517403,0.00016875,2]
[334626266,1723362638030,-475.82133345,0.00016875,2]
[334626267,1723362638041,-424.88308538,0.00016875,2]
[334626268,1723362638075,-1999.05404821,0.00016875,2]
[334626269,1723362638086,-1294.19060398,0.00016875,2]
[334626270,1723362638097,-519.980028,0.00016875,2]
[334626271,1723362638108,-479.23585153,0.00016875,2]
[334626272,1723362638120,-500.0,0.00016875,2]
[334626273,1723362638132,-1141.51556525,0.00016875,2]
[334626274,1723362638142,-2500.0,0.00016875,2]
[334626275,1723362638151,-309.47314323,0.00016876,2]
[334626276,1723362638161,-150.0,0.00016878,2]
[334626277,1723362638170,-50774.4978,0.0001688,2]
[334626278,1723362638180,-1000.0,0.0001688,2]
[334626279,1723362638191,-624.33214489,0.00016882,2]
[334626280,1723362638201,-150.0,0.00016887,2]
[334626281,1723362638210,-150.0,0.0001689,2]
[334626282,1723362638219,-515.59657301,0.0001689,2]
[334626283,1723362638228,-547.78190811,0.00016897,2]
[334626284,1723362638237,-547.78190811,0.00016897,2]
[334626285,1723362638247,-150.0,0.00016902,2]
[334626286,1723362638256,-150.0,0.00016902,2]
[334626287,1723362638265,-150.0,0.0001691,2]
[334626288,1723362638274,-150.0,0.00016914,2]
[334626289,1723362638284,-150.0,0.00016915,2]
[334626290,1723362638293,-150.0,0.00016916,2]
[334626291,1723362638302,-150.0,0.00016919,2]
[334626292,1723362638311,-150.0,0.00016921,2]
[334626293,1723362638321,-150.0,0.00016922,2]
[334626294,1723362638329,-150.0,0.00016929,2]
[334626295,1723362638339,-150.0,0.00016935,2]
[334626296,1723362638349,-1374.07703347,0.00016937,2]
[334626297,1723362638359,-150.0,0.00016938,2]
[334626298,1723362638368,-150.0,0.00016939,2]
[334626299,1723362638377,-150.0,0.00016943,2]
[334626300,1723362638386,-150.0,0.00016947,2]
[334626301,1723362638395,-155.0,0.00016948,2]
[334626302,1723362638404,-265.88721194,0.00016948,2]
[334626304,1723362638413,-150.0,0.00016953,2]
[334626306,1723362638422,-150.0,0.00016955,2]
[334626308,1723362638433,-150.0,0.00016959,2]
[334626310,1723362638442,-150.0,0.00016959,2]
[334626312,1723362638451,-150.0,0.00016959,2]
[334626314,1723362638461,-150.0,0.0001696,2]
[334626316,1723362638470,-150.0,0.00016965,2]
[334626318,1723362638479,-150.01,0.00016966,2]
[334626320,1723362638488,-2955.06352617,0.00016966,2]
[334626322,1723362638497,-133.42795618,0.00016966,3]
[334626324,1723362638509,-14763.12446439,0.00016966,3]
[334626326,1723362638520,-36319.60541743,0.00016966,3]
[334626328,1723362638529,-12804.0394595,0.00016968,3]
[334626330,1723362638538,-10928.70007,0.00016972,2]
[334626332,1723362638548,-4074.4851145,0.00016975,2]
[334626334,1723362638557,-601.8631514,0.00016975,2]
[334626336,1723362638566,-1079.0209677,0.00016975,2]
[334626338,1723362638576,-41959.8084684,0.00016975,2]
[334626340,1723362638585,-127024.43360349,0.00016976,3]
[334626343,1723362638597,-1015.96099151,0.00016976,3]
[334626345,1723362638606,-2434.53699486,0.00016976,3]
[334626347,1723362638621,-49112.65287047,0.00016972,2]
[334626349,1723362638632,-300.32,0.00016972,2]
[334626352,1723362638643,-251.63,0.00016972,2]
[334626354,1723362638654,-1656.96940033,0.00016972,2]
[334626356,1723362638665,-496.804842,0.00016972,2]
[334626358,1723362638674,-1612.92826726,0.00016976,3]
[334626360,1723362638686,-1803.52865084,0.00016976,3]
[334626362,1723362638697,-570.23685725,0.00016976,3]
[334626365,1723362638708,-3163.29177813,0.00016976,3]
[334626367,1723362638719,-779.53754992,0.00016976,3]
[334626369,1723362638730,-1886.75246678,0.00016976,3]
[334626371,1723362638741,-33424.84602216,0.00016976,3]
[334626373,1723362638750,-2947.05743262,0.00016984,2]
[334626375,1723362638759,-8118.34932835,0.00016986,2]
[334626377,1723362638770,-2008.92646472,0.00016986,2]
[334626379,1723362638781,-1153.0,0.00016986,2]
[334626382,1723362638792,-6674.47107964,0.00016986,2]
[334626384,1723362638803,-1391.18950319,0.00016986,2]
[334626504,1723362639872,-264.10102571,0.00016986,2]
[334626506,1723362639884,-632.99314697,0.00016986,2]
[334626508,1723362639895,-613.04,0.00016986,2]
[334626512,1723362639926,-22512.11144,0.00016986,2]
[334626518,1723362639979,-1038.51813156,0.00016986,2]
[334626529,1723362640078,-176.48539,0.00016875,2]
[334626531,1723362640088,-198584.46987986,0.00016986,2]
[334626533,1723362640097,-11418.9146468,0.0001699,3]
[334626535,1723362640106,-2255.99999901,0.00017,2]
[334626537,1723362640116,-420.0,0.00017051,2]
[334626539,1723362640126,-1000.0,0.0001708,2]
[334626541,1723362640136,-1000.0,0.000171,2]
[334626543,1723362640145,-420.0,0.00017147,2]
[334626545,1723362640154,-167.0,0.00017201,2]
[334626547,1723362640164,-993.14078294,0.00017259,2]
[334626549,1723362640173,-200.143434,0.00017263,2]
[334626551,1723362640186,-152.0,0.00017265,4]
[334626553,1723362640199,-1000.0,0.000173,2]
[334626555,1723362640209,-1187.0,0.000175,2]
[334626557,1723362640218,-800.0,0.0001753,2]
[334626559,1723362640229,-218.88,0.00017543,2]
[334626561,1723362640238,-275.96098268,0.0001757,2]
[334626563,1723362640248,-167.0,0.00017573,2]
[334626565,1723362640257,-1653.33565474,0.00017636,2]
[334626566,1723362640268,-12804.0394595,0.0001768,3]
[334626568,1723362640277,-152.0,0.0001772,5]
[334626570,1723362640287,-10389.162563,0.00017739,2]
[334626572,1723362640296,-155.73849284,0.00017739,2]
[334626574,1723362640306,-370.61012794,0.00017739,2]
[334626576,1723362640316,-370.61012794,0.00017739,2]
[334626577,1723362640326,-49394.9390592,0.00017739,2]
[334626579,1723362640336,-12804.0394595,0.00017751,3]
[334626581,1723362640346,-22837.8292936,0.00017751,3]
[334626583,1723362640355,-56365.03101734,0.00017767,2]
[334626585,1723362640365,-181.12,0.00017814,2]
[334626587,1723362640374,-515.596573,0.00017878,2]
[334626589,1723362640384,-200.0,0.00017915,2]
[334626591,1723362640395,-1000.0,0.00018,18]
[334626593,1723362640404,-738.27246533,0.00018,2]
[334626595,1723362640413,-308.26193439,0.00018,2]
[334626597,1723362640423,-167.0,0.00018098,2]
[334626599,1723362640433,-200.143434,0.00018126,2]
[334626601,1723362640442,-522.80021426,0.00018167,2]
[334626603,1723362640451,-531.10427254,0.00018167,2]
[334626605,1723362640461,-152.0,0.00018175,6]
[334626607,1723362640470,-1326.0,0.0001818,2]
[334626609,1723362640480,-720.42,0.000182,2]
[334626611,1723362640489,-835.26,0.00018301,2]
[334626613,1723362640499,-835.26,0.00018301,2]
[334626615,1723362640509,-150.0,0.00018438,2]
[334626617,1723362640518,-150.0,0.00018438,2]
[334626619,1723362640527,-150.0,0.00018438,2]
[334626621,1723362640537,-150.0,0.00018438,2]
[334626623,1723362640546,-167.0,0.00018444,2]
[334626625,1723362640556,-309.47314323,0.00018481,2]
[334626627,1723362640566,-217.0,0.00018552,2]
[334626629,1723362640581,-2443.46435883,0.000186,2]
[334626631,1723362640590,-152.0,0.0001863,7]
[334626633,1723362640599,-38412.1183785,0.00018639,3]
[334626635,1723362640609,-34256.7439404,0.00018639,3]
[334626637,1723362640618,-12804.0394595,0.00018642,3]
[334626639,1723362640627,-22837.8292936,0.00018642,3]
[334626641,1723362640637,-9849.6250561,0.00018646,2]
[334626643,1723362640646,-46971.5010056,0.00018646,2]
[334626645,1723362640656,-3542.3433086,0.00018649,2]
[334626647,1723362640665,-587.0,0.0001865,2]
[334626649,1723362640674,-56365.03101734,0.00018658,2]
[334626651,1723362640684,-1082.0,0.000188,2]
[334626653,1723362640694,-587.0,0.00018862,2]
[334626655,1723362640706,-515.596573,0.00018865,2]
[334626656,1723362640715,-164.14081487,0.00018875,2]
[334626658,1723362640725,-12804.0394595,0.0001889,3]
[334626660,1723362640734,-6259.0,0.000189,2]
[334626662,1723362640743,-4400.0,0.000189,6]
[334626664,1723362640754,-12804.0394595,0.00018955,3]
[334626666,1723362640763,-11418.9146468,0.00018955,3]
[334626668,1723362640773,-25608.078919,0.00018965,3]
[334626670,1723362640782,-34256.7439404,0.00018965,3]
[334626672,1723362640791,-12804.0394595,0.00018978,3]
[334626674,1723362640801,-11418.9146468,0.00018978,3]
[334626676,1723362640810,-1000.0,0.00018988,2]
[334626678,1723362640819,-1000.0,0.00018988,2]
[334626680,1723362640828,-1000.0,0.00018988,2]
[334626682,1723362640838,-1000.0,0.00018988,2]
[334626684,1723362640847,-1000.0,0.00018988,2]
[334626685,1723362640856,-1000.0,0.00018988,2]
[334626687,1723362640866,-1000.0,0.00018988,2]
[334626689,1723362640875,-1000.0,0.00018988,2]
[334626691,1723362640884,-1000.0,0.00018988,2]
[334626693,1723362640893,-1000.0,0.00018988,2]
[334626695,1723362640903,-1000.0,0.00018988,2]
[334626697,1723362640912,-1000.0,0.00018988,2]
[334626699,1723362640922,-1000.0,0.00018988,2]
[334626701,1723362640932,-1000.0,0.00018988,2]
[334626703,1723362640941,-1000.0,0.00018988,2]
[334626705,1723362640951,-1000.0,0.00018988,2]
[334626706,1723362640960,-1000.0,0.00018988,2]
[334626708,1723362640969,-1000.0,0.00018988,2]
[334626710,1723362640979,-1000.0,0.00018988,2]
[334626712,1723362640989,-1000.0,0.00018988,2]
[334626714,1723362640998,-1000.0,0.00018988,2]
[334626715,1723362641007,-1000.0,0.00018988,2]
[334626717,1723362641017,-1000.0,0.00018988,2]
[334626719,1723362641026,-1000.0,0.00018988,2]
[334626721,1723362641035,-1000.0,0.00018988,2]
[334626723,1723362641045,-1000.0,0.00018988,2]
[334626725,1723362641054,-1000.0,0.00018988,2]
[334626727,1723362641064,-1000.0,0.00018988,2]
[334626729,1723362641073,-1000.0,0.00018988,2]
[334626730,1723362641083,-1000.0,0.00018988,2]
[334626731,1723362641093,-767.5426,0.00018988,2]
[334626732,1723362641103,-167.0,0.00018995,2]
[334626733,1723362641112,-155.0,0.00019,2]
[334626734,1723362641122,-1107.43434204,0.00019,5]
[334626735,1723362641131,-152.0,0.00019085,8]
[334626736,1723362641141,-11418.9146468,0.0001916,3]
[334626737,1723362641150,-536.06210922,0.0001924,2]
[334626738,1723362641160,-835.26,0.0001926,2]
[334626739,1723362641169,-835.26,0.0001926,2]
[334626740,1723362641179,-835.26,0.0001926,2]
[334626741,1723362641193,-280.08,0.0001926,2]
[334626742,1723362641204,-150.95,0.0001926,2]
[334626743,1723362641213,-426.33,0.0001926,2]
[334626744,1723362641226,-356.41,0.0001926,2]
[334626745,1723362641236,-150.0,0.0001926,2]
[334626746,1723362641246,-150.0,0.0001926,2]
[334626747,1723362641256,-150.7,0.0001926,2]
[334626748,1723362641265,-426.33,0.0001926,2]
[334626749,1723362641275,-150.0,0.0001926,2]
[334626750,1723362641284,-1063.52,0.0001926,2]
[334626752,1723362641294,-150.0,0.0001926,2]
[334626754,1723362641305,-150.0,0.0001926,2]
[334626756,1723362641314,-300.0,0.00019378,2]
[334626758,1723362641324,-155.0,0.00019387,2]
[334626760,1723362641334,-243.12714442,0.00019387,2]
[334626762,1723362641344,-438.98351168,0.00019387,2]
[334626780,1723362641515,-155.0,0.00019387,2]
[334626782,1723362641526,-800.0,0.00019478,2]
[334626784,1723362641536,-218.88,0.00019493,2]
[334626786,1723362641545,-9310.0875491,0.00019524,2]
[334626789,1723362641555,-44548.062952,0.00019524,2]
[334626791,1723362641565,-570.6073275,0.0001953,2]
[334626793,1723362641575,-1022.9854896,0.0001953,2]
[334626795,1723362641584,-39888.3003926,0.0001953,2]
[334626797,1723362641594,-22837.8292936,0.00019534,4]
[334626799,1723362641605,-22837.8292936,0.00019538,4]
[334626801,1723362641615,-152.0,0.0001954,9]
[334626803,1723362641625,-3010.2015027,0.00019548,2]
[334626805,1723362641634,-56365.03101734,0.0001955,2]
[334626807,1723362641644,-11418.9146468,0.00019552,4]
[334626809,1723362641654,-8509.54140966,0.00019562,2]
[334626811,1723362641664,-5000.0,0.00019562,2]
[334626813,1723362641674,-11418.9146468,0.0001979,4]
[334626815,1723362641683,-181.12,0.00019794,2]
[334626817,1723362641693,-17134.80849258,0.000198,2]
[334626819,1723362641703,-7500.0,0.00019876,2]
[334626821,1723362641713,-11418.9146468,0.0001989,4]
[334626823,1723362641723,-155.0,0.00019899,2]
[334626825,1723362641733,-8900.0,0.000199,7]
[334626827,1723362641743,-200.0,0.00019905,2]
[334626829,1723362641753,-11418.9146468,0.00019956,4]
[334626831,1723362641763,-11418.9146468,0.00019966,4]
[334626833,1723362641773,-2947.05743262,0.00019983,2]
[334626835,1723362641782,-8770.5500421,0.00019986,2]
[334626837,1723362641792,-42124.6248984,0.00019986,2]
[334626839,1723362641801,-152.0,0.00019995,10]
[334626841,1723362641811,-252.54290944,0.00019998,2]
[334626843,1723362641821,-12080.39076125,0.0002,2]
[334626846,1723362641831,-34235.72996606,0.0002,2]
[334626848,1723362641840,-258.56600752,0.0002,2]
[334626850,1723362641849,-868.96369562,0.0002,2]
[334626852,1723362641860,-155.0,0.0002,2]
[334626853,1723362641869,-1184.83579861,0.0002,2]
[334626855,1723362641879,-1284.50441733,0.0002,2]
[334626858,1723362641889,-626.44965531,0.0002,2]
[334626860,1723362641898,-155.0,0.0002,2]
[334626862,1723362641908,-155.0,0.0002,2]
[334626863,1723362641918,-150.0,0.0002,2]
[334626865,1723362641928,-171.0,0.0002,2]
[334626868,1723362641940,-2261.0,0.0002,2]
[334626869,1723362641950,-1979.7818053,0.0002,2]
[334626871,1723362641959,-492.0,0.0002,12]
[334626874,1723362641970,-744.61916652,0.0002,2]
[334626876,1723362641980,-4148.1231035,0.0002,2]
[334626878,1723362641990,-150.0,0.0002,2]
[334626880,1723362642000,-150.0,0.0002,2]
[334626882,1723362642009,-150.0,0.0002,2]
[334626884,1723362642019,-150.0,0.00020082,2]
[334626885,1723362642028,-150.0,0.00020082,2]
[334626887,1723362642038,-426.33,0.00020082,2]
[334626889,1723362642048,-150.0,0.00020082,2]
[334626891,1723362642057,-426.33,0.00020082,2]
[334626893,1723362642066,-150.0,0.00020082,2]
[334626895,1723362642076,-150.0,0.00020082,2]
[334626898,1723362642086,-425.68,0.00020082,2]
[334626899,1723362642095,-150.0,0.00020082,2]
[334626901,1723362642105,-306.72,0.00020082,2]
[334626903,1723362642115,-304.83062568,0.00020109,2]
[334626905,1723362642125,-316.73217254,0.0002012,2]
[334626907,1723362642134,-526.66030387,0.0002038,2]
[334626909,1723362642143,-618.45460589,0.00020386,2]
[334626911,1723362642152,-823.0,0.00020399,2]
[334626912,1723362642161,-2478.0596968,0.0002043,2]
[334626914,1723362642170,-56365.03101734,0.00020442,2]
[334626916,1723362642179,-475.68,0.00020447,2]
[334626918,1723362642195,-184.19,0.00020447,2]
[334626920,1723362642204,-152.0,0.0002045,11]
[334626922,1723362642214,-153.74363478,0.0002045,5]
[334626924,1723362642223,-720.42,0.00020464,2]
[334626926,1723362642232,-966.9500116,0.00020658,2]
[334626928,1723362642241,-37816.7923167,0.00020658,2]
[334626929,1723362642251,-500.0,0.00020688,2]
[334626931,1723362642262,-384.50752733,0.00020776,2]
[334626932,1723362642270,-155.0,0.00020831,2]
[334626934,1723362642280,-164.14081487,0.00020883,2]
[334626936,1723362642289,-530.92,0.00020904,2]
[334626938,1723362642298,-301.2,0.00020904,2]
[334626940,1723362642307,-530.92,0.00020904,2]
[334626942,1723362642316,-530.92,0.00020904,2]
[334626944,1723362642325,-500.0,0.00020974,2]
[334626945,1723362642335,-433.26495225,0.00021,2]
[334626947,1723362642344,-646.95101438,0.00021,2]
[334626949,1723362642353,-265.87,0.00021,2]
[334626951,1723362642363,-500.0,0.00021,2]
[334626953,1723362642372,-1193.72,0.00021,2]
[334626955,1723362642381,-1340.69032755,0.00021,4]
[334626957,1723362642390,-500.0,0.00021091,2]
[334626958,1723362642399,-399.92248288,0.0002116,2]
[334626960,1723362642408,-275.96098267,0.00021235,2]
[334626962,1723362642418,-539.3515035,0.00021246,2]
[334626964,1723362642427,-9316.0,0.0002126,2]
[334626966,1723362642437,-56365.03101734,0.00021333,2]
[334626968,1723362642446,-800.0,0.00021425,2]
[334626971,1723362642456,-218.88,0.00021442,2]
[334626974,1723362642465,-39701.1868448,0.00021488,2]
[334626975,1723362642474,-373993.51923427,0.00021502,2]
[334626977,1723362642484,-328026.60936649,0.00021503,2]
[334626979,1723362642493,-500.0,0.00021559,2]
[334626981,1723362642502,-2625.94444646,0.00021678,11]
[334626983,1723362642511,-8231.0125352,0.00021688,2]
[334626985,1723362642522,-300.0,0.00021726,2]
[334626987,1723362642531,-181.12,0.00021773,2]
[334626989,1723362642540,-399.92248283,0.00021783,2]
[334626991,1723362642549,-1383.27852747,0.00021803,2]
[334626994,1723362642558,-265.93564082,0.00021803,2]
[334626997,1723362642567,-25018.37792653,0.00021803,2]
[334627000,1723362642577,-290.21,0.00021809,2]
[334627003,1723362642587,-203.2364,0.00021818,2]
[334627006,1723362642597,-2500.0,0.00021818,2]
[334627008,1723362642606,-1000.0,0.00021818,2]
[334627010,1723362642616,-500.0,0.00021826,2]
[334627012,1723362642625,-500.0,0.00021835,2]
[334627014,1723362642635,-500.0,0.00021844,2]
[334627016,1723362642644,-500.0,0.00021853,2]
[334627018,1723362642653,-500.0,0.00021862,2]
[334627019,1723362642661,-917.68896503,0.00021863,2]
[334627021,1723362642670,-3583.0,0.00021863,2]
[334627023,1723362642679,-500.0,0.0002187,2]
[334627025,1723362642689,-500.0,0.00021879,2]
[334627028,1723362642698,-500.0,0.00021888,2]
[334627030,1723362642708,-200.0,0.00021896,2]
[334627033,1723362642717,-500.0,0.00021897,2]
[334627036,1723362642727,-500.0,0.00021897,2]
[334627039,1723362642736,-1200.0,0.000219,2]
[334627041,1723362642745,-200.0,0.000219,2]
[334627043,1723362642754,-1945.9178909,0.00021903,2]
[334627045,1723362642763,-500.0,0.00021906,2]
[334627047,1723362642772,-500.0,0.00021906,2]
[334627049,1723362642782,-500.0,0.00021914,2]
[334627051,1723362642791,-500.0,0.00021914,2]
[334627053,1723362642801,-27822.99121253,0.00021916,4]
[334627055,1723362642810,-1000.0,0.00021918,13]
[334627057,1723362642818,-1000.0,0.00021918,13]
[334627059,1723362642828,-1000.0,0.00021918,13]
[334627060,1723362642837,-1000.0,0.00021918,13]
[334627062,1723362642846,-1000.0,0.00021918,13]
[334627064,1723362642855,-1000.0,0.00021918,13]
[334627066,1723362642864,-1000.0,0.00021918,13]
[334627068,1723362642873,-1000.0,0.00021918,13]
[334627069,1723362642881,-1000.0,0.00021918,13]
[334627071,1723362642891,-1000.0,0.00021918,13]
[334627073,1723362642900,-1000.0,0.00021918,13]
[334627075,1723362642909,-1000.0,0.00021918,13]
[334627077,1723362642918,-1000.0,0.00021918,13]
[334627079,1723362642928,-1000.0,0.00021918,13]
[334627080,1723362642938,-1000.0,0.00021918,13]
[334627082,1723362642947,-1000.0,0.00021918,13]
[334627084,1723362642956,-1000.0,0.00021918,13]
[334627086,1723362642965,-1000.0,0.00021918,13]
[334627088,1723362642974,-1000.0,0.00021918,13]
[334627090,1723362642983,-1000.0,0.00021918,13]
[334627092,1723362642992,-1000.0,0.00021918,13]
[334627093,1723362643002,-1000.0,0.00021918,13]
[334627095,1723362643011,-1000.0,0.00021918,13]
[334627097,1723362643020,-1000.0,0.00021918,13]
[334627099,1723362643029,-1000.0,0.00021918,13]
[334627101,1723362643038,-1000.0,0.00021918,13]
[334627103,1723362643047,-1000.0,0.00021918,13]
[334627105,1723362643056,-1000.0,0.00021918,13]
[334627107,1723362643065,-1000.0,0.00021918,13]
[334627108,1723362643074,-634.0,0.00021918,13]
[334627110,1723362643084,-150.0,0.00021918,2]
[334627112,1723362643093,-2506.02,0.00021918,2]
[334627114,1723362643102,-500.0,0.00021918,2]
[334627116,1723362643111,-500.0,0.00021918,2]
[334627118,1723362643120,-500.0,0.00021918,2]
[334627120,1723362643129,-500.0,0.00021918,2]
[334627122,1723362643138,-500.0,0.00021918,2]
[334627123,1723362643147,-500.0,0.00021918,2]
[334627125,1723362643156,-500.0,0.00021923,2]
[334627127,1723362643165,-500.0,0.00021923,2]
[334627129,1723362643174,-508.0956796,0.00021951,2]
[334627131,1723362643183,-150.0,0.00021973,2]
[334627133,1723362643197,-714.1031632,0.00022,2]
[334627135,1723362643206,-1018.67231585,0.00022,7]
[334627136,1723362643215,-1000.0,0.00022,12]
[334627138,1723362643224,-696.2,0.00022137,2]
[334627140,1723362643233,-56365.03101734,0.00022225,2]
[334627142,1723362643243,-1413.7760849,0.00022241,2]
[334627144,1723362643252,-1152.0,0.00022312,2]
[334627146,1723362643262,-399.92248283,0.00022407,2]
[334627148,1723362643271,-322.59,0.00022411,2]
[334627149,1723362643280,-302.43,0.00022411,2]
[334627151,1723362643290,-151.45,0.00022411,2]
[334627153,1723362643299,-1061.04,0.00022411,2]
[334627155,1723362643309,-1000.0,0.00022466,2]
[334627157,1723362643317,-500.0,0.0002248,2]
[334627159,1723362643326,-150.0,0.00022495,2]
[334627161,1723362643336,-351.10348188,0.00022521,2]
[334627163,1723362643346,-150.42,0.00022548,2]
[334627164,1723362643354,-910.9145336,0.00022666,2]
[334627166,1723362643363,-35745.2842408,0.00022666,2]
[334627168,1723362643372,-720.42,0.00022728,2]
[334627170,1723362643381,-1031.76459501,0.00022799,10]
[334627172,1723362643391,-13400.0,0.000228,8]
[334627174,1723362643400,-265.93564081,0.00022835,2]
[334627175,1723362643409,-476.8398556,0.00022866,2]
[334627177,1723362643419,-445.5840317,0.00022866,2]
[334627179,1723362643428,-854.8790555,0.00022866,2]
[334627181,1723362643438,-798.8435775,0.00022866,2]
[334627183,1723362643447,-33673.776165,0.00022866,2]
[334627184,1723362643456,-31602.2680891,0.00022866,2]
[334627186,1723362643465,-2947.05743262,0.00022879,2]
[334627188,1723362643474,-291665.70404624,0.00022882,2]
[334627190,1723362643483,-164.14081487,0.00022892,2]
[334627192,1723362643492,-17900.0,0.000229,8]
[334627194,1723362643501,-11524.55942035,0.00023,7]
[334627196,1723362643510,-723.62565761,0.00023,2]
[334627197,1723362643519,-137410.89569367,0.00023,2]
[334627199,1723362643528,-384.87,0.00023,2]
[334627201,1723362643537,-384.87,0.00023,2]
[334627203,1723362643546,-384.87,0.00023,2]
[334627205,1723362643555,-384.87,0.00023,2]
[334627207,1723362643566,-384.87,0.00023,2]
[334627209,1723362643575,-384.87,0.00023,2]
[334627211,1723362643584,-384.87,0.00023,2]
[334627213,1723362643593,-384.87,0.00023,2]
[334627215,1723362643602,-384.87,0.00023,2]
[334627217,1723362643611,-384.87,0.00023,2]
[334627219,1723362643621,-384.87,0.00023,2]
[334627221,1723362643630,-384.87,0.00023,2]
[334627223,1723362643639,-384.87,0.00023,2]
[334627225,1723362643648,-384.87,0.00023,2]
[334627227,1723362643658,-384.87,0.00023,2]
[334627229,1723362643668,-384.87,0.00023,2]
[334627231,1723362643678,-384.87,0.00023,2]
[334627233,1723362643688,-384.87,0.00023,2]
[334627235,1723362643702,-384.87,0.00023,2]
[334627237,1723362643711,-384.87,0.00023,2]
[334627238,1723362643721,-384.87,0.00023,2]
[334627240,1723362643730,-384.87,0.00023,2]
[334627242,1723362643740,-384.87,0.00023,2]
[334627244,1723362643749,-384.87,0.00023,2]
[334627246,1723362643758,-384.87,0.00023,2]
[334627248,1723362643768,-384.87,0.00023,2]
[334627250,1723362643777,-384.87,0.00023,2]
[334627252,1723362643786,-384.87,0.00023,2]
[334627254,1723362643796,-384.87,0.00023,2]
[334627256,1723362643805,-384.87,0.00023,2]
[334627258,1723362643815,-384.87,0.00023,2]
[334627260,1723362643824,-384.87,0.00023,2]
[334627262,1723362643833,-384.87,0.00023,2]
[334627264,1723362643842,-384.87,0.00023,2]
[334627266,1723362643851,-384.87,0.00023,2]
[334627268,1723362643861,-384.87,0.00023,2]
[334627270,1723362643870,-384.87,0.00023,2]
[334627272,1723362643879,-384.87,0.00023,2]
[334627274,1723362643889,-384.87,0.00023,2]
[334627275,1723362643898,-384.87,0.00023,2]
[334627277,1723362643907,-399.92248283,0.0002303,2]
[334627279,1723362643917,-384.87,0.00023058,2]
[334627281,1723362643926,-71249.0,0.00023068,2]
[334627283,1723362643936,-150.0,0.00023071,2]
[334627285,1723362643946,-56365.03101734,0.00023117,2]
[334627287,1723362643956,-817.22,0.00023121,30]
[334627289,1723362643965,-500.0,0.00023126,2]
[334627291,1723362643974,-180.0,0.00023205,2]
[334627293,1723362643984,-184.69637239,0.00023287,5]
[334627295,1723362643994,-1383.27852745,0.00023352,2]
[334627297,1723362644003,-25018.37792652,0.00023352,2]
[334627299,1723362644012,-800.0,0.00023373,2]
[334627301,1723362644021,-218.88,0.00023391,2]
[334627303,1723362644032,-500.0,0.00023485,2]
[334627304,1723362644043,-500.0,0.00023518,2]
[334627306,1723362644052,-3708.19529924,0.0002354,2]
[334627308,1723362644062,-150.0,0.00023648,2]
[334627310,1723362644071,-399.92248283,0.00023653,2]
[334627312,1723362644080,-500.0,0.00023733,2]
[334627314,1723362644089,-181.12,0.00023753,2]
[334627316,1723362644098,-1241.28848283,0.00023779,10]
[334627317,1723362644107,-165563.38830249,0.000238,2]
[334627319,1723362644116,-500.0,0.00023806,2]
[334627321,1723362644127,-265.93564081,0.00023868,2]
[334627323,1723362644136,-546.773561,0.00023873,2]
[334627325,1723362644145,-200.0,0.00023886,2]
[334627327,1723362644155,-22400.0,0.000239,8]
[334627329,1723362644165,-782.66214577,0.00023964,2]
[334627331,1723362644174,-2947.05743262,0.00023967,2]
[334627333,1723362644184,-543518.04244283,0.0002397,4]